[Event "Niedersachsen-ch A 2024"]
[Site "Verden Aller"]
[Date "2024.01.04"]
[Round "2.2"]
[White "Schulz, Jens"]
[Black "Koch, Yannick"]
[Result "0-1"]
[ECO "B15"]
[WhiteElo "2152"]
[BlackElo "1981"]
[Annotator "RC"]
[PlyCount "136"]
[EventDate "2024.01.01"]
[EventType "swiss"]
[EventCountry "GER"]
[SourceTitle "playchess.com"]
[Source "ChessBase"]
[SourceQuality "1"]
[TimeControl "40/5400+30:1800+30"]

1. e4 {[%emt 0:00:06]} c6 {[%emt 0:00:12]} 2. d4 {[%emt 0:00:23]} d5 {[%emt 0:00:07]} 3. Nc3 {[%emt 0:00:11]} dxe4 {[%emt 0:00:24]} 4. Nxe4 {[%emt 0:00:06]} Nf6 {[%emt 0:00:20]} 5. Nxf6+ {[%emt 0:00:32]} exf6 {[%emt 0:00:11]} 6. Nf3 {[%emt 0:02:31]} Bd6 {[%emt 0:01:15]} 7. Be2 {[%emt 0:01:01]} O-O {[%emt 0:00:45]} 8. O-O {[%emt 0:00:15]} Bg4 {[%emt 0:06:17]} 9. Be3 {[%emt 0:07:08]} Re8 {[%emt 0:03:38]} 10. Re1 {[%emt 0:05:21]} Nd7 {[%emt 0:08:17]} 11. h3 {[%emt 0:07:48]} Be6 {[%emt 0:08:06]} 12. c4 {[%emt 0:05:35]} Nf8 {[%emt 0:01:45]} 13. Qd2 {[%emt 0:06:26]} Qd7 {[%emt 0:04:31]} 14. Bf1 {[%emt 0:03:36]} Bf5 {[%emt 0:03:17]} 15. Red1 {[%emt 0:23:13]} Be4 {[%emt 0:01:08]} 16. Ne1 {[%emt 0:01:27]} Bc7 {[%emt 0:07:24]} 17. Bd3 {[%emt 0:05:48]} Qd6 {[%emt 0:02:09]} 18. g3 {[%emt 0:01:16]} Qd7 {[%emt 0:01:18]} 19. Bxe4 {[%emt 0:04:42]} Rxe4 {[%emt 0:00:26]} 20. Kg2 {[%emt 0:01:21]} f5 {[%emt 0:13:58]} 21. Nd3 {[%emt 0:01:12]} b6 {[%emt 0:03:12]} 22. Nf4 {[%emt 0:03:04]} Bxf4 {[%emt 0:09:30]} 23. gxf4 {[%emt 0:01:02]} Ng6 {[%emt 0:02:29]} 24. Rac1 {[%emt 0:05:47]} Qd6 {[%emt 0:08:29]} 25. d5 {[%emt 0:01:59]} Nxf4+ {[%emt 0:05:28]} 26. Bxf4 {[%emt 0:00:09]} Rxf4 {[%emt 0:00:05]} 27. dxc6 {[%emt 0:03:08]} Qxc6+ {[%emt 0:00:05]} 28. Qd5 {[%emt 0:00:04]} Qg6+ {[%emt 0:00:45]} 29. Kf1 {[%emt 0:00:44]} Re8 {[%emt 0:01:12]} 30. Rc3 {[%emt 0:01:37]} Qh5 {[%emt 0:01:28]} 31. Re3 {[%emt 0:00:41]} Rfe4 {[%emt 0:01:07]} 32. Rxe4 {[%emt 0:01:57]} Qxh3+ {[%emt 0:00:14]} 33. Kg1 {[%emt 0:00:22]} fxe4 {[%emt 0:00:51]} 34. Qxe4 {[%emt 0:00:08]} Qc8 {[%emt 0:00:45]} 35. Qd4 {[%emt 0:01:06]} h6 {[%emt 0:01:08]} 36. Rd3 {[%emt 0:01:38]} Re1+ {[%emt 0:00:51]} 37. Kg2 {[%emt 0:00:06]} Qc6+ {[%emt 0:00:59]} 38. Qd5 {[%emt 0:00:59]} Qg6+ {[%emt 0:03:49]} 39. Rg3 {[%emt 0:01:02]} Qe4+ {[%emt 0:00:09]} 40. Qxe4 {[%emt 0:00:50]} Rxe4 {[%emt 0:00:04]} 41. Ra3 {[%emt 0:31:38]} a5 {[%emt 0:05:49]} 42. Rb3 {[%emt 0:00:00]} Rxc4 {[%emt 0:00:31]} 43. Rxb6 {[%emt 0:00:00]} g6 {[%emt 0:09:48]} 44. b3 {[%emt 0:00:00]} Rc2 {[%emt 0:00:52]} 45. a4 {[%emt 0:00:00]} Rb2 {[%emt 0:01:22]} 46. Rb5 {[%emt 0:00:00]} Kg7 {[%emt 0:00:51]} 47. Kg3 {[%emt 0:00:00]} g5 {[%emt 0:01:09]} 48. Kg2 {[%emt 0:00:00]} Kg6 {[%emt 0:00:16]} 49. Rxa5 {[%emt 0:00:00]} Rxb3 {[%emt 0:00:08]} 50. Ra8 {[%emt 0:00:00]} Ra3 {[%emt 0:00:32]} 51. a5 {[%emt 0:00:00]} h5 {[%emt 0:00:24]} 52. a6 {[%emt 0:00:00]} h4 {[%emt 0:02:49]} 53. Kh2 {[%emt 0:00:00]} Kf5 {[%emt 0:00:45]} 54. a7 {[%emt 0:00:00]} Kf4 {[%emt 0:00:32]} 55. Kg1 {[%emt 0:00:00]} Kg4 {[%emt 0:05:49]} 56. Kg2 {[%emt 0:00:00]} Ra2 {[%emt 0:01:29]} 57. Kg1 {[%emt 0:00:00]} Kh3 {[%emt 0:04:01]} 58. Kf1 {[%emt 0:00:00]} Ra1+ {[%emt 0:00:28]} 59. Ke2 {[%emt 0:00:00]} Kg4 {[%emt 0:00:40]} 60. Ke3 {[%emt 0:00:00]} Ra3+ {[%emt 0:00:18]} 61. Ke4 {[%emt 0:00:00]} f5+ {[%emt 0:01:08]} 62. Ke5 {[%emt 0:00:00]} Ra5+ {[%emt 0:00:45]} 63. Kf6 {[%emt 0:00:00]} Ra6+ {[%emt 0:00:06]} 64. Ke5 {[%emt 0:00:00]} h3 {[%emt 0:01:59]} 65. f3+ {[%emt 0:01:36]} Kxf3 {[%emt 0:00:11]} 66. Kxf5 {[%emt 0:02:43]} h2 {[%emt 0:01:44]} 67. Rh8 {[%emt 0:00:39]} Rxa7 {[%emt 0:00:31]} 68. Rxh2 {[%emt 0:00:31]} Ra5+ {[%emt 0:00:10]} 0-1

[Event "Niedersachsen-ch A 2024"]
[Site "Verden Aller"]
[Date "2024.01.04"]
[Round "2.3"]
[White "Stotyn, Fabian"]
[Black "Kieselbach, Marvin"]
[Result "1-0"]
[ECO "B59"]
[WhiteElo "2139"]
[BlackElo "1926"]
[Annotator "NA RC"]
[PlyCount "68"]
[EventDate "2024.01.01"]
[EventType "swiss"]
[EventCountry "GER"]
[SourceTitle "playchess.com"]
[Source "ChessBase"]
[SourceQuality "1"]
[TimeControl "40/5400+30:1800+30"]

1. e4 {[%emt 0:00:03]} c5 {[%emt 0:00:25]} 2. Nf3 {[%emt 0:00:09]} Nc6 {[%emt 0:01:17]} 3. d4 {[%emt 0:00:03]} cxd4 {[%emt 0:00:06]} 4. Nxd4 {[%emt 0:00:05]} Nf6 {[%emt 0:01:12]} 5. Nc3 {[%emt 0:01:20]} d6 {[%emt 0:00:44]} 6. Be2 {[%emt 0:00:58]} e5 {[%emt 0:00:17]} 7. Nb3 {[%emt 0:00:25]} Be6 {[%emt 0:01:57]} 8. Bg5 {[%emt 0:01:59]} Be7 {[%emt 0:00:20]} 9. Bxf6 {[%emt 0:00:06]} Bxf6 {[%emt 0:03:06]} 10. Bg4 {[%emt 0:02:34]} Qd7 {[%emt 0:03:00]} 11. Bxe6 {[%emt 0:03:53]} fxe6 {[%emt 0:00:15]} 12. Qh5+ {[%emt 0:00:47]} Qf7 {[%emt 0:05:52]} 13. Qxf7+ {[%emt 0:02:28]} Kxf7 {[%emt 0:00:02]} 14. O-O-O {[%emt 0:00:10]} Rhd8 {[%emt 0:02:47]} 15. Rd3 {[%emt 0:02:22]} Nb4 {[%emt 0:08:47]} 16. Rh3 {[%emt 0:01:41]} Rac8 {[%emt 0:06:46]} 17. a3 {[%emt 0:00:26]} Na6 {[%emt 0:05:26]} 18. Nb5 {[%emt 0:04:42]} Nc7 {[%emt 0:10:08]} 19. Nc3 {[%emt 0:02:29]} Na6 {[%emt 0:00:16]} 20. Rd1 {[%emt 0:00:33]} Nc5 {[%emt 0:01:15]} 21. Na5 {[%emt 0:04:25]} b6 {[%emt 0:03:58]} 22. Nc4 {[%emt 0:01:10]} Ke7 {[%emt 0:02:53]} 23. b3 {[%emt 0:06:10]} b5 {[%emt 0:11:17]} 24. Nxb5 {[%emt 0:02:44]} Nxe4 {[%emt 0:01:25]} 25. Rxh7 {[%emt 0:05:03]} a6 {[%emt 0:10:59]} 26. Na7 {[%emt 0:03:13]} Rc5 {[%emt 0:04:31]} 27. Na5 {[%emt 0:01:19]} Kd7 {[%emt 0:01:23]} 28. Nb7 {[%emt 0:01:13]} Rc7 {[%emt 0:00:28]} 29. Nxd8 {[%emt 0:00:20]} Kxd8 {[%emt 0:00:55]} 30. f3 {[%emt 0:04:47]} Bg5+ {[%emt 0:00:44]} 31. Kb2 {[%emt 0:00:42]} Nf6 {[%emt 0:00:32]} 32. Rh8+ {[%emt 0:01:08]} Kd7 {[%emt 0:00:07]} 33. Nc8 {[%emt 0:01:58]} Rc6 {[%emt 0:02:40]} 34. Nxd6 {[%emt 0:01:08]} Rxd6 {[%emt 0:00:26]} 1-0

[Event "Niedersachsen-ch A 2024"]
[Site "Verden Aller"]
[Date "2024.01.04"]
[Round "2.4"]
[White "Reins, Henning"]
[Black "Lichtmannecker, Daniel"]
[Result "0-1"]
[ECO "B13"]
[WhiteElo "1950"]
[BlackElo "2124"]
[Annotator "NA RC"]
[PlyCount "60"]
[EventDate "2024.01.01"]
[EventType "swiss"]
[EventCountry "GER"]
[SourceTitle "playchess.com"]
[Source "ChessBase"]
[SourceQuality "1"]
[TimeControl "40/5400+30:1800+30"]

1. e4 {[%emt 0:03:33]} c6 {[%emt 0:00:09]} 2. d4 {[%emt 0:00:36]} d5 {[%emt 0:00:07]} 3. exd5 {[%emt 0:01:26]} cxd5 {[%emt 0:00:07]} 4. Bd3 {[%emt 0:00:25]} Nc6 {[%emt 0:00:10]} 5. c3 {[%emt 0:01:15]} Nf6 {[%emt 0:00:06]} 6. Bf4 {[%emt 0:00:53]} Bg4 {[%emt 0:00:29]} 7. Nf3 {[%emt 0:02:47]} e6 {[%emt 0:01:13]} 8. Qb3 {[%emt 0:05:45]} Qc8 {[%emt 0:12:43]} 9. Ne5 {[%emt 0:07:51]} Nxe5 {[%emt 0:02:36]} 10. dxe5 {[%emt 0:01:27]} Nd7 {[%emt 0:00:52]} 11. O-O {[%emt 0:04:13]} Be7 {[%emt 0:02:44]} 12. Nd2 {[%emt 0:02:10]} O-O {[%emt 0:06:33]} 13. Qc2 {[%emt 0:08:24]} g6 {[%emt 0:01:34]} 14. Nb3 {[%emt 0:05:47]} Nc5 {[%emt 0:03:21]} 15. Nd4 {[%emt 0:14:20]} Bf5 {[%emt 0:05:34]} 16. Bxf5 {[%emt 0:05:26]} gxf5 {[%emt 0:03:03]} 17. Rfe1 {[%emt 0:03:28]} Kh8 {[%emt 0:01:18]} 18. Re3 {[%emt 0:03:44]} Rg8 {[%emt 0:01:58]} 19. Rh3 {[%emt 0:02:21]} Rg4 {[%emt 0:04:08]} 20. Be3 {[%emt 0:02:07]} Qg8 {[%emt 0:02:34]} 21. f3 {[%emt 0:01:28]} Rg6 {[%emt 0:01:14]} 22. Kh1 {[%emt 0:02:20]} Nd7 {[%emt 0:03:38]} 23. Bf4 {[%emt 0:03:45]} a6 {[%emt 0:04:15]} 24. Rg1 {[%emt 0:03:32]} Rc8 {[%emt 0:05:15]} 25. Rh5 {[%emt 0:06:32]} Bc5 {[%emt 0:03:54]} 26. Qd3 {[%emt 0:01:23]} Qg7 {[%emt 0:01:36]} 27. Rd1 {[%emt 0:03:59]} Rxg2 {[%emt 0:05:00]} 28. Bg3 {[%emt 0:00:49]} Rxb2 {[%emt 0:00:57]} 29. Nxf5 {[%emt 0:00:28]} Qg6 {[%emt 0:02:14]} 30. Nh6 {[%emt 0:01:41]} Qxh5 {[%emt 0:01:33]} 0-1

[Event "Niedersachsen-ch A 2024"]
[Site "Verden Aller"]
[Date "2024.01.04"]
[Round "2.5"]
[White "Peters, Tom"]
[Black "Kieselbach, Jannik"]
[Result "1-0"]
[ECO "C54"]
[WhiteElo "2102"]
[BlackElo "1885"]
[Annotator "NA RC"]
[PlyCount "33"]
[EventDate "2024.01.01"]
[EventType "swiss"]
[EventCountry "GER"]
[SourceTitle "playchess.com"]
[Source "ChessBase"]
[SourceQuality "1"]
[TimeControl "40/5400+30:1800+30"]

1. e4 {[%emt 0:02:58]} e5 {[%emt 0:00:15]} 2. Nf3 {[%emt 0:00:12]} Nc6 {[%emt 0:00:21]} 3. Bc4 {[%emt 0:00:05]} Bc5 {[%emt 0:00:18]} 4. c3 {[%emt 0:00:17]} Nf6 {[%emt 0:00:37]} 5. d3 {[%emt 0:00:07]} d6 {[%emt 0:01:10]} 6. Nbd2 {[%emt 0:00:05]} a6 {[%emt 0:00:37]} 7. Bb3 {[%emt 0:01:13]} O-O {[%emt 0:01:09]} 8. Qe2 {[%emt 0:00:45]} Ba7 {[%emt 0:01:45]} 9. h3 {[%emt 0:04:21]} Be6 {[%emt 0:21:00]} 10. Nf1 {[%emt 0:02:30]} Nd7 {[%emt 0:18:58]} 11. Bg5 {[%emt 0:07:18]} Qe8 {[%emt 0:02:13]} 12. Ng3 {[%emt 0:02:05]} f6 {[%emt 0:01:23]} 13. Bd2 {[%emt 0:10:54]} Qf7 {[%emt 0:01:50]} 14. Bxe6 {[%emt 0:04:43]} Qxe6 {[%emt 0:00:09]} 15. Nf5 {[%emt 0:01:20]} d5 {[%emt 0:13:25]} 16. N3h4 {[%emt 0:07:46]} Rad8 {[%emt 0:03:48]} 17. Qg4 {[%emt 0:52:21]} 1-0

[Event "Niedersachsen-ch A 2024"]
[Site "Verden Aller"]
[Date "2024.01.04"]
[Round "2.6"]
[White "Seer, Maurice"]
[Black "Celik, Abdullah"]
[Result "0-1"]
[ECO "B90"]
[WhiteElo "1912"]
[BlackElo "2081"]
[Annotator "RC"]
[PlyCount "146"]
[EventDate "2024.01.01"]
[EventType "swiss"]
[EventCountry "GER"]
[SourceTitle "playchess.com"]
[Source "ChessBase"]
[SourceQuality "1"]
[TimeControl "40/5400+30:1800+30"]

1. e4 {[%emt 0:00:03]} c5 {[%emt 0:00:05]} 2. Nf3 {[%emt 0:00:06]} d6 {[%emt 0:00:03]} 3. d4 {[%emt 0:00:12]} cxd4 {[%emt 0:00:04]} 4. Nxd4 {[%emt 0:00:07]} Nf6 {[%emt 0:00:02]} 5. Nc3 {[%emt 0:00:29]} a6 {[%emt 0:00:03]} 6. Be3 {[%emt 0:01:06]} e5 {[%emt 0:00:05]} 7. Nb3 {[%emt 0:00:53]} Be6 {[%emt 0:00:04]} 8. f3 {[%emt 0:00:51]} Nbd7 {[%emt 0:00:19]} 9. Qd2 {[%emt 0:00:58]} h5 {[%emt 0:00:14]} 10. h3 {[%emt 0:18:05]} b5 {[%emt 0:13:55]} 11. Qf2 {[%emt 0:07:53]} b4 {[%emt 0:11:42]} 12. Na4 {[%emt 0:04:05]} Be7 {[%emt 0:05:53]} 13. Bd3 {[%emt 0:05:09]} Qc7 {[%emt 0:05:52]} 14. Nb6 {[%emt 0:09:33]} Nxb6 {[%emt 0:01:15]} 15. Bxb6 {[%emt 0:01:16]} Qc8 {[%emt 0:00:58]} 16. Nd2 {[%emt 0:05:52]} a5 {[%emt 0:06:35]} 17. Be3 {[%emt 0:05:05]} h4 {[%emt 0:07:13]} 18. Bg5 {[%emt 0:17:17]} Ng8 {[%emt 0:02:23]} 19. Bxe7 {[%emt 0:02:50]} Nxe7 {[%emt 0:00:03]} 20. f4 {[%emt 0:00:37]} exf4 {[%emt 0:06:11]} 21. Qxf4 {[%emt 0:00:45]} Qc5 {[%emt 0:02:53]} 22. Rf1 {[%emt 0:04:04]} Ng6 {[%emt 0:02:20]} 23. Qf2 {[%emt 0:00:31]} Qxf2+ {[%emt 0:01:47]} 24. Rxf2 {[%emt 0:00:01]} Ne5 {[%emt 0:02:09]} 25. Bb5+ {[%emt 0:00:46]} Ke7 {[%emt 0:00:16]} 26. Nf3 {[%emt 0:02:52]} Nxf3+ {[%emt 0:01:34]} 27. Rxf3 {[%emt 0:00:24]} a4 {[%emt 0:06:22]} 28. a3 {[%emt 0:04:47]} Rhb8 {[%emt 0:06:01]} 29. Bd3 {[%emt 0:01:05]} bxa3 {[%emt 0:00:41]} 30. bxa3 {[%emt 0:00:27]} Ra5 {[%emt 0:04:19]} 31. Rf2 {[%emt 0:01:44]} Rc5 {[%emt 0:05:13]} 32. Rd2 {[%emt 0:01:22]} Rb2 {[%emt 0:01:04]} 33. Ke2 {[%emt 0:03:49]} Rc3 {[%emt 0:03:56]} 34. Ke3 {[%emt 0:01:46]} Ra2 {[%emt 0:03:06]} 35. Rxa2 {[%emt 0:00:32]} Bxa2 {[%emt 0:00:05]} 36. Kd4 {[%emt 0:00:30]} Rxa3 {[%emt 0:00:43]} 37. Bc4 {[%emt 0:00:31]} Bxc4 {[%emt 0:01:08]} 38. Kxc4 {[%emt 0:00:02]} Re3 {[%emt 0:01:03]} 39. Kd4 {[%emt 0:00:03]} Re1 {[%emt 0:01:00]} 40. c4 {[%emt 0:01:16]} Ra1 {[%emt 0:00:24]} 41. e5 {[%emt 0:03:29]} dxe5+ {[%emt 0:01:48]} 42. Kxe5 {[%emt 0:00:07]} a3 {[%emt 0:00:42]} 43. Kd5 {[%emt 0:01:13]} Kd7 {[%emt 0:03:49]} 44. Kc5+ {[%emt 0:00:52]} Kc7 {[%emt 0:00:04]} 45. Rc2 {[%emt 0:06:23]} f5 {[%emt 0:11:49]} 46. Rd2 {[%emt 0:04:58]} g5 {[%emt 0:03:40]} 47. Kd5 {[%emt 0:01:59]} f4 {[%emt 0:04:42]} 48. Kc5 {[%emt 0:01:40]} Re1 {[%emt 0:02:00]} 49. Rc2 {[%emt 0:06:22]} Re3 {[%emt 0:00:34]} 50. Rd2 {[%emt 0:01:01]} f3 {[%emt 0:00:52]} 51. gxf3 {[%emt 0:02:02]} Rxf3 {[%emt 0:00:05]} 52. Rh2 {[%emt 0:00:45]} Rb3 {[%emt 0:00:09]} 53. Rh1 {[%emt 0:01:03]} a2 {[%emt 0:01:18]} 54. Ra1 {[%emt 0:00:22]} Rb2 {[%emt 0:00:19]} 55. Kd5 {[%emt 0:00:42]} Kb6 {[%emt 0:02:02]} 56. Kd4 {[%emt 0:00:09]} Kc6 {[%emt 0:00:09]} 57. Kc3 {[%emt 0:00:51]} Rh2 {[%emt 0:00:05]} 58. Kd4 {[%emt 0:00:51]} Kd6 {[%emt 0:00:10]} 59. c5+ {[%emt 0:01:37]} Kc6 {[%emt 0:00:05]} 60. Kc4 {[%emt 0:00:23]} Rf2 {[%emt 0:01:38]} 61. Rg1 {[%emt 0:01:22]} Rf4+ {[%emt 0:02:03]} 62. Kb3 {[%emt 0:00:32]} Rf3+ {[%emt 0:00:40]} 63. Kxa2 {[%emt 0:00:22]} Rg3 {[%emt 0:00:01]} 64. Rh1 {[%emt 0:00:46]} Kxc5 {[%emt 0:00:03]} 65. Rh2 {[%emt 0:00:33]} Kd4 {[%emt 0:00:10]} 66. Kb2 {[%emt 0:00:26]} Ke4 {[%emt 0:00:57]} 67. Kc2 {[%emt 0:00:28]} Kf3 {[%emt 0:00:06]} 68. Kd3 {[%emt 0:00:43]} Rg1 {[%emt 0:00:19]} 69. Kd4 {[%emt 0:01:45]} Kg3 {[%emt 0:00:54]} 70. Re2 {[%emt 0:00:21]} Kxh3 {[%emt 0:01:02]} 71. Ke4 {[%emt 0:00:23]} Rf1 {[%emt 0:00:42]} 72. Re3+ {[%emt 0:00:29]} Kg4 {[%emt 0:00:13]} 73. Kd3 {[%emt 0:00:16]} Rf3 {[%emt 0:00:11]} 0-1

[Event "Niedersachsen-ch A 2024"]
[Site "Verden Aller"]
[Date "2024.01.04"]
[Round "2.7"]
[White "Lau, Udo"]
[Black "Boerma, Daniel"]
[Result "1/2-1/2"]
[ECO "D34"]
[WhiteElo "2071"]
[BlackElo "1905"]
[Annotator "NA RC"]
[PlyCount "124"]
[EventDate "2024.01.01"]
[EventType "swiss"]
[EventCountry "GER"]
[SourceTitle "playchess.com"]
[Source "ChessBase"]
[SourceQuality "1"]
[TimeControl "40/5400+30:1800+30"]

1. d4 {[%emt 0:00:04]} Nf6 {[%emt 0:00:20]} 2. g3 {[%emt 0:00:28]} d5 {[%emt 0:00:21]} 3. Bg2 {[%emt 0:00:21]} e6 {[%emt 0:00:25]} 4. Nf3 {[%emt 0:00:59]} c5 {[%emt 0:00:12]} 5. O-O {[%emt 0:00:51]} cxd4 {[%emt 0:00:16]} 6. Nxd4 {[%emt 0:00:23]} Nc6 {[%emt 0:00:15]} 7. c4 {[%emt 0:03:12]} Be7 {[%emt 0:01:20]} 8. Nc3 {[%emt 0:01:44]} O-O {[%emt 0:00:32]} 9. cxd5 {[%emt 0:00:33]} exd5 {[%emt 0:00:23]} 10. Bf4 {[%emt 0:06:57]} a6 {[%emt 0:02:11]} 11. Rc1 {[%emt 0:01:09]} Be6 {[%emt 0:01:46]} 12. Nxe6 {[%emt 0:07:32]} fxe6 {[%emt 0:00:07]} 13. Bh3 {[%emt 0:02:51]} e5 {[%emt 0:00:39]} 14. Bg5 {[%emt 0:01:11]} d4 {[%emt 0:00:17]} 15. Bxf6 {[%emt 0:00:32]} Bxf6 {[%emt 0:00:29]} 16. Ne4 {[%emt 0:00:22]} Kh8 {[%emt 0:00:25]} 17. a3 {[%emt 0:04:30]} Qe7 {[%emt 0:01:54]} 18. Qd3 {[%emt 0:03:18]} Rfd8 {[%emt 0:03:51]} 19. Rc5 {[%emt 0:03:18]} Qf7 {[%emt 0:01:15]} 20. Rfc1 {[%emt 0:01:17]} Be7 {[%emt 0:00:42]} 21. R5c2 {[%emt 0:02:29]} Qd5 {[%emt 0:03:57]} 22. Bg2 {[%emt 0:03:49]} Qf7 {[%emt 0:03:31]} 23. h4 {[%emt 0:00:33]} Rf8 {[%emt 0:00:42]} 24. Rf1 {[%emt 0:11:14]} Rac8 {[%emt 0:00:30]} 25. Nd2 {[%emt 0:00:46]} Qe6 {[%emt 0:03:36]} 26. Be4 {[%emt 0:01:03]} Nd8 {[%emt 0:02:55]} 27. Bxh7 {[%emt 0:02:53]} Rxc2 {[%emt 0:00:12]} 28. Qxc2 {[%emt 0:00:08]} Bxh4 {[%emt 0:03:38]} 29. Bd3 {[%emt 0:00:53]} Qh3 {[%emt 0:04:14]} 30. Ne4 {[%emt 0:04:12]} Ne6 {[%emt 0:04:34]} 31. e3 {[%emt 0:07:21]} Be7 {[%emt 0:08:03]} 32. f4 {[%emt 0:06:46]} dxe3 {[%emt 0:01:07]} 33. fxe5 {[%emt 0:00:52]} Nd4 {[%emt 0:06:39]} 34. Rxf8+ {[%emt 0:01:12]} Bxf8 {[%emt 0:00:09]} 35. Qd1 {[%emt 0:00:15]} Qf5 {[%emt 0:10:42]} 36. Kg2 {[%emt 0:00:28]} g6 {[%emt 0:00:44]} 37. Qh1+ {[%emt 0:05:02]} Kg7 {[%emt 0:00:50]} 38. Qh4 {[%emt 0:00:16]} Qf3+ {[%emt 0:03:20]} 39. Kh2 {[%emt 0:00:40]} e2 {[%emt 0:01:50]} 40. Qf6+ {[%emt 0:08:26]} Qxf6 {[%emt 0:00:50]} 41. exf6+ {[%emt 0:30:09]} Kh6 {[%emt 0:32:12]} 42. Bxe2 {[%emt 0:00:27]} Nxe2 {[%emt 0:00:05]} 43. Kh3 {[%emt 0:00:44]} Nd4 {[%emt 0:00:58]} 44. Kg4 {[%emt 0:01:20]} Ne6 {[%emt 0:00:17]} 45. Nc3 {[%emt 0:01:37]} Kh7 {[%emt 0:01:52]} 46. Kf3 {[%emt 0:02:07]} Kg8 {[%emt 0:01:32]} 47. Ke4 {[%emt 0:00:23]} Kf7 {[%emt 0:00:38]} 48. Ke5 {[%emt 0:00:31]} Nd8 {[%emt 0:01:53]} 49. Ne4 {[%emt 0:00:40]} Nc6+ {[%emt 0:00:46]} 50. Kd5 {[%emt 0:00:14]} g5 {[%emt 0:03:47]} 51. g4 {[%emt 0:00:50]} Nd8 {[%emt 0:02:22]} 52. Nxg5+ {[%emt 0:01:36]} Kxf6 {[%emt 0:00:29]} 53. Nh7+ {[%emt 0:00:54]} Kf7 {[%emt 0:00:17]} 54. Nxf8 {[%emt 0:00:07]} Kxf8 {[%emt 0:00:06]} 55. Kd6 {[%emt 0:00:06]} Nc6 {[%emt 0:03:10]} 56. Kc7 {[%emt 0:00:37]} Na5 {[%emt 0:00:14]} 57. Kb6 {[%emt 0:00:23]} Nc4+ {[%emt 0:00:08]} 58. Kxb7 {[%emt 0:01:06]} a5 {[%emt 0:00:16]} 59. b3 {[%emt 0:00:44]} Nxa3 {[%emt 0:00:56]} 60. Ka6 {[%emt 0:00:30]} Nc4 {[%emt 0:00:32]} 61. Kb5 {[%emt 0:00:12]} Nd2 {[%emt 0:00:22]} 62. Kxa5 {[%emt 0:00:11]} Nxb3+ {[%emt 0:00:05]} 1/2-1/2

[Event "Niedersachsen-ch A 2024"]
[Site "Verden Aller"]
[Date "2024.01.04"]
[Round "2.8"]
[White "Carsten, Juergen"]
[Black "Nielsen, Lars Aaes"]
[Result "0-1"]
[ECO "C01"]
[WhiteElo "1749"]
[BlackElo "2202"]
[Annotator "RC"]
[PlyCount "126"]
[EventDate "2024.01.01"]
[EventType "swiss"]
[EventCountry "GER"]
[SourceTitle "playchess.com"]
[Source "ChessBase"]
[SourceQuality "1"]
[TimeControl "40/5400+30:1800+30"]

1. e4 {[%emt 0:00:15]} e6 {[%emt 0:00:12]} 2. d4 {[%emt 0:03:22]} d5 {[%emt 0:00:03]} 3. Bd3 {[%emt 0:01:49]} dxe4 {[%emt 0:01:19]} 4. Bxe4 {[%emt 0:00:10]} Nf6 {[%emt 0:00:08]} 5. Bg5 {[%emt 0:01:34]} Be7 {[%emt 0:00:02]} 6. Bd3 {[%emt 0:00:41]} h6 {[%emt 0:01:06]} 7. Bh4 {[%emt 0:01:12]} O-O {[%emt 0:00:09]} 8. Nf3 {[%emt 0:00:51]} b6 {[%emt 0:01:55]} 9. Nbd2 {[%emt 0:05:57]} Bb7 {[%emt 0:00:08]} 10. O-O {[%emt 0:04:41]} Nbd7 {[%emt 0:00:04]} 11. Re1 {[%emt 0:03:43]} c5 {[%emt 0:03:23]} 12. c3 {[%emt 0:02:21]} Nd5 {[%emt 0:01:18]} 13. Bxe7 {[%emt 0:03:02]} Qxe7 {[%emt 0:00:08]} 14. Ne4 {[%emt 0:03:14]} Rfd8 {[%emt 0:03:50]} 15. Rc1 {[%emt 0:05:28]} Rac8 {[%emt 0:00:50]} 16. Bb1 {[%emt 0:02:52]} N7f6 {[%emt 0:01:35]} 17. Qd2 {[%emt 0:08:58]} cxd4 {[%emt 0:09:40]} 18. cxd4 {[%emt 0:01:45]} Rxc1 {[%emt 0:01:41]} 19. Qxc1 {[%emt 0:03:00]} Rc8 {[%emt 0:02:34]} 20. Qd2 {[%emt 0:01:22]} Qc7 {[%emt 0:00:40]} 21. Ne5 {[%emt 0:01:46]} a5 {[%emt 0:09:16]} 22. a3 {[%emt 0:01:10]} Nxe4 {[%emt 0:04:58]} 23. Bxe4 {[%emt 0:00:49]} Ne7 {[%emt 0:02:12]} 24. Bxb7 {[%emt 0:05:39]} Qxb7 {[%emt 0:00:18]} 25. h3 {[%emt 0:04:50]} Rd8 {[%emt 0:00:22]} 26. Qf4 {[%emt 0:03:05]} Nf5 {[%emt 0:00:53]} 27. Rd1 {[%emt 0:01:35]} f6 {[%emt 0:02:48]} 28. Nf3 {[%emt 0:02:00]} Qd5 {[%emt 0:03:34]} 29. Qc7 {[%emt 0:01:30]} Rd6 {[%emt 0:01:21]} 30. Qc8+ {[%emt 0:01:09]} Kh7 {[%emt 0:00:11]} 31. Qc2 {[%emt 0:00:32]} Rc6 {[%emt 0:01:46]} 32. Qb1 {[%emt 0:02:40]} Kg8 {[%emt 0:00:10]} 33. b4 {[%emt 0:02:54]} a4 {[%emt 0:01:56]} 34. Rc1 {[%emt 0:04:16]} Qb3 {[%emt 0:03:54]} 35. Qa1 {[%emt 0:00:31]} Rc2 {[%emt 0:02:41]} 36. Rxc2 {[%emt 0:02:13]} Qxc2 {[%emt 0:00:03]} 37. g4 {[%emt 0:01:07]} Nd6 {[%emt 0:00:16]} 38. Ne1 {[%emt 0:03:17]} Qb3 {[%emt 0:01:16]} 39. Kg2 {[%emt 0:01:50]} b5 {[%emt 0:00:58]} 40. Qc1 {[%emt 0:00:59]} Nc4 {[%emt 0:00:32]} 41. Nc2 {[%emt 0:31:55]} Qc3 {[%emt 0:30:11]} 42. Kh2 {[%emt 0:03:41]} Nxa3 {[%emt 0:01:06]} 43. Qxa3 {[%emt 0:00:23]} Qxc2 {[%emt 0:00:11]} 44. Qf3 {[%emt 0:01:29]} Kh7 {[%emt 0:01:46]} 45. Kg2 {[%emt 0:00:34]} f5 {[%emt 0:01:27]} 46. Qa3 {[%emt 0:03:17]} Qe4+ {[%emt 0:01:02]} 47. Kg1 {[%emt 0:00:00]} Qxd4 {[%emt 0:00:00]} 48. gxf5 {[%emt 0:00:00]} exf5 {[%emt 0:00:00]} 49. Qf3 {[%emt 0:00:00]} Qe4 {[%emt 0:00:00]} 50. Qa3 {[%emt 0:00:00]} Qb1+ {[%emt 0:00:00]} 51. Kg2 {[%emt 0:00:00]} Qb3 {[%emt 0:00:00]} 52. Qc1 {[%emt 0:00:00]} Qxb4 {[%emt 0:00:00]} 53. Qc8 {[%emt 0:00:00]} Qe4+ {[%emt 0:00:00]} 54. Kg3 {[%emt 0:00:00]} Qd3+ {[%emt 0:00:00]} 55. Kg2 {[%emt 0:00:00]} b4 {[%emt 0:00:00]} 56. Qb8 {[%emt 0:00:00]} b3 {[%emt 0:00:00]} 57. h4 {[%emt 0:00:00]} a3 {[%emt 0:00:00]} 58. h5 {[%emt 0:00:00]} b2 {[%emt 0:00:00]} 59. Qb6 {[%emt 0:00:00]} f4 {[%emt 0:00:00]} 60. f3 {[%emt 0:00:00]} b1=Q {[%emt 0:00:00]} 61. Qf2 {[%emt 0:00:00]} a2 {[%emt 0:00:00]} 62. Kh2 {[%emt 0:00:00]} a1=Q {[%emt 0:45:37]} 63. Qf1 {[%emt 0:00:00]} Qe2+ {[%emt 0:00:00]} 0-1